bitfinex-derivatives/quotes_BNBF0:USTF0_20250524
["timestamp","ask_amount","ask_price","bid_price","bid_amount"]
[1748053524014,1.0894325,663.08,662.33,1.485]
[1748053524217,1.12371235,663.08,662.34,1.09506973]
[1748053525218,1.08929792,663.07,662.34,1.09506973]
[1748053525419,1.12371235,663.08,662.34,1.09506973]
[1748053527119,1.12371235,663.09,662.33,2.58006973]
[1748053527322,1.08933411,663.08,662.33,2.58006973]
[1748053527619,1.12371235,663.09,662.33,2.58006973]
[1748053527821,1.08935341,663.08,662.33,2.58006973]
[1748053528020,1.12371235,663.09,662.33,2.58006973]
[1748053528319,1.08934829,663.08,662.33,2.58006973]
[1748053528519,1.08934829,663.07,662.33,2.58006973]
[1748053528819,1.08934829,663.06,662.33,2.58006973]
[1748053529020,1.12371235,663.09,662.33,2.58006973]
[1748053529220,1.08934196,663.08,662.33,2.58006973]
[1748053529420,1.08934196,663.07,662.33,2.58006973]
[1748053529622,1.08934196,663.06,662.33,2.58006973]
[1748053529823,1.12371235,663.09,662.33,2.58006973]
[1748053530021,1.08939145,663.08,662.33,2.58006973]
[1748053530322,1.08939145,663.07,662.33,1.485]
[1748053530622,1.08939145,663.06,662.33,1.485]
[1748053530822,1.12371235,663.14,662.33,1.485]
[1748053531023,1.58131279,663.13,662.33,1.485]
[1748053531319,1.58131279,663.12,662.33,1.485]
[1748053531522,1.58131279,663.11,662.33,1.485]
[1748053531723,1.58139976,663.1,662.33,1.485]
[1748053532022,1.08949156,663.09,662.33,1.485]
[1748053532216,1.08949156,663.08,662.33,1.485]
[1748053532419,1.08949156,663.07,662.33,1.485]
[1748053532620,1.08949156,663.06,662.33,1.485]
[1748053532820,1.12371235,663.14,662.33,1.485]
[1748053533119,1.58165874,663.13,662.33,1.485]
[1748053533319,1.58165874,663.12,662.33,1.485]
[1748053533517,1.58169877,663.11,662.33,1.485]
[1748053533717,1.58169877,663.1,662.33,1.485]
[1748053533920,1.08967,663.09,662.33,1.485]
[1748053534118,1.08967,663.08,662.33,1.485]
[1748053534320,1.08967,663.07,662.33,1.485]
[1748053534517,1.08967,663.06,662.33,1.485]
[1748053534724,1.12371235,663.14,662.33,1.485]
[1748053535023,1.58198727,663.13,662.33,1.485]
[1748053535223,1.58198727,663.12,662.33,1.485]
[1748053535417,1.58213595,663.11,662.33,1.485]
[1748053535620,1.58213595,663.1,662.33,1.485]
[1748053535819,1.58224407,663.09,662.33,1.485]
[1748053536021,1.09008184,663.08,662.33,1.485]
[1748053536223,1.12371235,663.14,662.33,1.485]
[1748053536423,1.58237834,663.13,662.33,1.485]
[1748053536621,1.58237834,663.12,662.33,1.485]
[1748053536824,1.09017559,663.11,662.33,1.485]
[1748053537022,1.09017559,663.1,662.33,1.485]
[1748053537222,1.09017559,663.09,662.33,1.485]
[1748053537429,1.09038116,663.08,662.33,1.485]
[1748053537629,1.12371235,663.13,662.33,1.485]
[1748053537922,1.58301878,663.12,662.33,1.485]
[1748053538126,1.09036367,663.11,662.33,1.485]
[1748053538328,1.09036367,663.1,662.33,1.485]
[1748053538626,1.09036367,663.09,662.33,1.485]
[1748053538922,1.09036367,663.08,662.33,1.485]
[1748053539128,1.12371235,663.13,662.33,1.485]
[1748053539328,1.58334543,663.12,662.33,1.485]
[1748053539622,1.58334543,663.11,662.33,1.485]
[1748053539824,1.09058862,663.1,662.33,1.485]
[1748053540027,1.09058862,663.09,662.33,1.485]
[1748053540225,1.09058862,663.08,662.33,1.485]
[1748053540530,1.12371235,663.06,662.33,1.485]
[1748053543134,1.12371235,663.06,662.33,2.58006973]
[1748053543435,1.09197117,663.05,662.33,2.58006973]
[1748053543734,1.12371235,663.06,662.33,2.58006973]
[1748053545936,1.12371235,663.13,662.33,2.58006973]
[1748053546131,1.58529906,663.12,662.33,2.58006973]
[1748053546333,1.58529906,663.11,662.33,2.58006973]
[1748053546537,1.58558478,663.1,662.33,2.58006973]
[1748053546736,1.58558478,663.09,662.33,2.58006973]
[1748053547034,1.58558478,663.08,662.33,2.58006973]
[1748053547236,1.58558478,663.07,662.33,2.58006973]
[1748053547536,1.58558478,663.06,662.33,2.58006973]
[1748053547736,1.09220901,663.05,662.33,2.58006973]
[1748053547931,1.09220901,663.04,662.33,2.58006973]
[1748053548131,1.09220901,663.03,662.33,2.58006973]
[1748053548331,1.09220901,663.02,662.33,2.58006973]
[1748053548532,1.09220901,663.01,662.33,2.58006973]
[1748053548833,1.12371235,663.13,662.33,2.58006973]
[1748053549031,1.58721765,663.12,662.33,2.58006973]
[1748053549232,1.12371235,663.09,662.36,1.09506973]
[1748053549435,1.58721765,663.08,662.36,1.09506973]
[1748053549639,1.58721765,663.07,662.36,1.09506973]
[1748053549936,1.09337674,663.06,662.36,1.09506973]
[1748053550139,1.09337674,663.05,662.36,1.09506973]
[1748053550440,1.09337674,663.04,662.36,1.09506973]
[1748053550641,1.09337674,663.03,662.36,1.09506973]
[1748053550942,1.09337674,663.02,662.36,1.09506973]
[1748053551137,1.12371235,663.09,662.36,1.09506973]
[1748053551338,1.5896339,663.08,662.36,1.09506973]
[1748053551537,1.5896339,663.07,662.36,1.09506973]
[1748053551842,1.58963629,663.06,662.36,1.09506973]
[1748053552142,1.58963629,663.05,662.36,1.09506973]
[1748053552344,1.5901318,663.04,662.36,1.09506973]
[1748053552541,1.5901318,663.03,662.45,1.09506973]
[1748053552740,1.5901318,663.02,662.45,1.09506973]
[1748053552941,1.59013009,663.01,662.45,1.09506973]
[1748053553238,1.0950444,663.0,662.45,1.09506973]
[1748053553537,1.0950444,662.99,662.45,1.09506973]
[1748053553738,1.09613394,662.98,662.45,1.09506973]
[1748053553946,1.09613394,662.97,662.45,1.09506973]
[1748053554246,1.12371235,663.1,662.45,1.09506973]
[1748053554443,1.591626,663.09,662.45,1.09506973]
[1748053554640,1.591626,663.08,662.45,1.09506973]
[1748053554843,1.591626,663.07,662.45,1.09506973]
[1748053555043,1.591626,663.06,662.45,1.09506973]
[1748053555247,1.591626,663.05,662.45,1.09506973]
[1748053555546,1.59177328,663.04,662.46,1.423]
[1748053555747,1.59177328,663.03,662.46,1.423]
[1748053555947,1.59177328,663.02,662.46,1.423]
[1748053556141,2.71548563,663.01,662.51,1.09506973]
[1748053556342,1.59177328,663.0,662.51,1.09506973]
[1748053556642,1.09654133,662.99,662.51,1.09506973]
[1748053556944,1.09654133,662.98,662.51,1.09506973]
[1748053557142,1.09654133,662.97,662.51,1.09506973]
[1748053557347,1.09674535,662.96,662.51,1.09506973]
[1748053557545,1.12371235,663.01,662.51,1.09506973]
[1748053557745,1.59206882,663.0,662.51,1.09506973]
[1748053557946,1.09674624,662.99,662.51,1.09506973]
[1748053558145,1.09674624,662.98,662.51,1.09506973]
[1748053558348,1.09674624,662.97,662.51,1.09506973]
[1748053558541,1.09674624,662.96,662.51,1.09506973]
[1748053558745,1.12371235,663.01,662.51,1.09506973]
[1748053558945,1.59167295,663.0,662.51,1.09506973]
[1748053559146,1.09643976,662.99,662.51,1.09506973]
[1748053559345,1.09643976,662.98,662.51,1.09506973]
[1748053559542,1.09643976,662.97,662.51,1.09506973]
[1748053559743,1.09643976,662.96,662.51,1.09506973]
[1748053559941,1.12371235,662.98,662.53,1.09506973]
[1748053560146,1.09648842,662.97,662.53,1.09506973]
[1748053560340,1.12371235,662.98,662.53,1.09506973]
[1748053560545,1.09649254,662.97,662.53,1.09506973]
[1748053560746,1.12371235,662.98,662.53,1.09506973]
[1748053560942,1.09649219,662.97,662.53,1.09506973]
[1748053561242,1.12371235,662.98,662.53,1.09506973]
[1748053561546,1.0966087,662.97,662.53,1.09506973]
[1748053561747,1.12371235,662.98,662.53,1.09506973]
[1748053561943,1.09666275,662.97,662.53,1.09506973]
[1748053562147,1.12371235,662.98,662.53,1.09506973]
[1748053562344,1.09674029,662.97,662.53,1.09506973]
[1748053562550,1.12371235,662.98,662.53,1.09506973]
[1748053562749,1.09674113,662.97,662.53,1.09506973]
[1748053562950,0.26246917,663.53,662.52,1.09506973]
[1748053562951,1.09675845,662.96,662.52,1.09506973]
[1748053563250,1.12371235,663.0,662.52,1.09506973]
[1748053563552,1.09671086,662.99,662.52,1.09506973]
[1748053563750,1.09671086,662.98,662.52,1.09506973]
[1748053563951,1.09641833,662.97,662.52,1.09506973]
[1748053564153,1.12371235,663.0,662.52,1.09506973]
[1748053564349,1.09626985,662.99,662.52,1.09506973]
[1748053564550,1.09626985,662.98,662.52,1.09506973]
[1748053564852,1.09626985,662.97,662.52,1.09506973]
[1748053565048,1.12371235,663.0,662.52,1.09506973]
[1748053565253,1.09618725,662.99,662.52,1.09506973]
[1748053565552,1.09618725,662.98,662.52,1.09506973]
[1748053565754,1.09605929,662.97,662.48,1.09506973]
[1748053565951,1.12371235,663.04,662.48,1.09506973]
[1748053566148,1.59088439,663.03,662.48,1.09506973]
[1748053566352,1.59088439,663.02,662.48,1.09506973]
[1748053566551,1.09604552,663.01,662.48,1.09506973]
[1748053566749,1.09604552,663.0,662.48,1.09506973]
[1748053566953,1.09604552,662.99,662.48,1.09506973]
[1748053567150,1.09604552,662.98,662.48,1.09506973]
[1748053567453,1.12371235,663.04,662.48,1.09506973]
[1748053567653,1.59069523,663.03,662.48,1.09506973]
[1748053567854,1.59069523,663.02,662.48,1.09506973]
[1748053568048,1.09598627,663.01,662.48,1.09506973]
[1748053568253,1.09598627,663.0,662.48,1.09506973]
[1748053568449,1.09598627,662.99,662.48,1.09506973]
[1748053568650,1.09598627,662.98,662.48,1.09506973]
[1748053568855,1.12371235,663.04,662.48,1.09506973]
[1748053569054,1.59066008,663.03,662.48,1.09506973]
[1748053569252,1.59066008,663.02,662.48,1.09506973]
[1748053569455,1.09596172,663.01,662.48,1.09506973]
[1748053569656,1.09596172,663.0,662.48,1.09506973]
[1748053569857,1.09596172,662.99,662.48,1.09506973]
[1748053570059,1.09596172,662.98,662.48,1.09506973]
[1748053570252,1.12371235,663.04,662.48,1.09506973]
[1748053570453,1.5906073,663.03,662.48,1.09506973]
[1748053570653,1.5906073,663.02,662.48,1.09506973]
[1748053570856,1.09592552,663.01,662.48,1.09506973]
[1748053571058,1.09592552,663.0,662.48,1.09506973]
[1748053571358,1.12371235,663.04,662.48,1.09506973]
[1748053571560,1.09595544,663.03,662.48,1.09506973]
[1748053571757,1.09595544,663.02,662.48,1.09506973]
[1748053571956,1.12371235,663.08,662.5,1.09506973]
[1748053572158,1.59072634,663.07,662.5,1.09506973]
[1748053572358,1.59069388,663.06,662.5,1.09506973]
[1748053572560,1.09598533,663.05,662.5,1.09506973]
[1748053572762,1.09598533,663.04,662.5,1.09506973]
[1748053572962,1.0959139,663.03,662.5,1.09506973]
[1748053573161,1.0959139,663.02,662.5,1.09506973]
[1748053573364,1.12371235,663.08,662.5,1.09506973]
[1748053573558,1.59050692,663.07,662.5,1.09506973]
[1748053573758,1.59050692,663.06,662.5,1.09506973]
[1748053573962,1.09583399,663.05,662.5,1.09506973]
[1748053574162,1.09583399,663.04,662.5,1.09506973]
[1748053574365,1.09583399,663.03,662.5,1.09506973]
[1748053574563,1.09583399,663.02,662.53,1.09506973]
[1748053574760,1.12371235,663.06,662.53,1.09506973]
[1748053575064,1.09580672,663.05,662.53,1.09506973]
[1748053575261,1.09580672,663.04,662.53,1.09506973]
[1748053575461,1.09580672,663.03,662.53,1.09506973]
[1748053575763,1.12371235,663.06,662.53,1.09506973]
[1748053575764,1.09580672,663.02,662.53,1.09506973]
[1748053575961,1.12371235,663.06,662.53,1.09506973]
[1748053576166,1.09583478,663.05,662.53,1.09506973]
[1748053576363,1.09583478,663.04,662.53,1.09506973]
[1748053576564,1.09578949,663.03,662.53,1.09506973]
[1748053576768,1.09578949,663.02,662.53,1.09506973]
[1748053576964,1.12371235,663.06,662.53,1.09506973]
[1748053577164,1.09580111,663.05,662.53,1.09506973]
[1748053577369,1.09580111,663.04,662.52,1.09506973]
[1748053577565,1.09580111,663.03,662.52,1.09506973]
[1748053577770,1.12371235,663.07,662.52,1.09506973]
[1748053577966,1.09572714,663.06,662.52,1.09506973]
[1748053578265,1.09572714,663.05,662.52,1.09506973]
[1748053578470,1.09572714,663.04,662.52,1.09506973]
[1748053578666,1.09572714,663.03,662.52,1.09506973]
[1748053578870,1.12371235,663.07,662.52,1.09506973]
[1748053579070,1.09578211,663.06,662.52,1.09506973]
[1748053579268,1.09578211,663.05,662.52,1.09506973]
[1748053579471,1.09578211,663.04,662.52,1.09506973]
[1748053579669,1.09578211,663.03,662.52,1.09506973]
[1748053579874,1.12371235,663.07,662.53,1.09506973]
[1748053580074,1.09556822,663.06,662.53,1.09506973]
[1748053580274,1.09552589,663.05,662.53,1.09506973]
[1748053580475,1.09552589,663.04,662.53,1.09506973]
[1748053580670,1.09552589,663.03,662.53,1.09506973]
[1748053580874,1.12371235,663.07,662.53,1.09506973]
[1748053581074,1.09551304,663.06,662.53,1.09506973]
[1748053581373,1.09551304,663.05,662.53,1.09506973]
[1748053581570,1.09551304,663.04,662.53,1.09506973]
[1748053581772,1.09551304,663.03,662.53,1.09506973]
[1748053581973,1.12371235,663.07,662.53,1.09506973]
[1748053582174,1.09549257,663.06,662.53,1.09506973]
[1748053582374,1.09549257,663.05,662.53,1.09506973]
[1748053582575,1.09549257,663.04,662.53,1.09506973]
[1748053582872,1.09549257,663.03,662.53,1.09506973]
[1748053583076,1.12371235,663.08,662.53,1.09506973]
[1748053583276,1.09543142,663.07,662.53,1.09506973]
[1748053583571,1.09543142,663.06,662.53,1.09506973]
[1748053583776,1.09543142,663.05,662.53,1.09506973]
[1748053583969,1.09543142,663.04,662.53,1.09506973]
[1748053584174,1.12371235,663.08,662.53,1.09506973]
[1748053584373,1.09538253,663.07,662.53,1.09506973]
[1748053584571,1.09538253,663.06,662.53,1.09506973]
[1748053584774,1.09538253,663.05,662.53,1.09506973]
[1748053584974,1.09538253,663.04,662.53,1.09506973]
[1748053585172,1.12371235,663.08,662.53,1.09506973]
[1748053585371,1.09536061,663.07,662.53,1.09506973]
[1748053585571,1.09536061,663.06,662.53,1.09506973]
[1748053585877,1.09536965,663.05,662.53,1.09506973]
[1748053586077,1.09536965,663.04,662.53,1.09506973]
[1748053586377,1.12371235,663.05,662.55,1.09506973]
[1748053586578,1.09534632,663.04,662.55,1.09506973]
[1748053586779,1.09533614,663.03,662.55,1.09506973]
[1748053586980,1.12371235,663.05,662.55,1.09506973]
[1748053587283,1.09533817,663.04,662.56,1.536]
[1748053587482,1.09533817,663.03,662.56,1.536]
[1748053587682,1.12371235,663.05,662.56,1.536]
[1748053587982,1.09533514,663.04,662.56,1.536]
[1748053588183,1.12371235,663.05,662.56,1.536]
[1748053588484,1.09531474,663.04,662.56,1.536]
[1748053588682,1.12371235,663.05,662.56,1.536]
[1748053588881,1.09532959,663.04,662.56,1.536]
[1748053589078,1.12371235,663.05,662.56,1.536]
[1748053589280,1.09531654,663.04,662.56,1.536]
[1748053589476,1.12371235,663.05,662.56,1.536]
[1748053589683,1.09533842,663.04,662.56,1.536]
[1748053589883,1.12371235,663.05,662.56,1.536]
[1748053590080,1.09533655,663.04,662.56,2.63106973]
[1748053590282,1.12371235,663.05,662.56,2.63106973]
[1748053590482,1.09536005,663.04,662.56,2.63106973]
[1748053590678,1.12371235,663.05,662.56,2.63106973]
[1748053593195,1.12371235,663.1,662.57,1.09506973]
[1748053593490,1.09556413,663.09,662.57,1.09506973]
[1748053593792,1.09556413,663.08,662.57,1.09506973]
[1748053593995,1.12371235,663.1,662.57,1.09506973]
[1748053594194,1.09556095,663.09,662.57,1.09506973]
[1748053594394,1.09556095,663.08,662.57,1.09506973]
[1748053594596,1.12371235,663.1,662.57,1.09506973]
[1748053594795,1.09556168,663.09,662.57,1.09506973]
[1748053594994,1.09556168,663.08,662.57,1.09506973]
[1748053595189,1.12371235,663.1,662.57,1.09506973]
[1748053595395,1.09553616,663.09,662.57,1.09506973]
[1748053595596,1.09553616,663.08,662.57,1.09506973]
[1748053595895,1.12371235,663.1,662.57,1.09506973]
[1748053596091,1.09557212,663.09,662.57,1.09506973]
[1748053596296,1.09557212,663.08,662.57,1.09506973]
[1748053596497,1.12371235,663.1,662.57,1.09506973]
[1748053596796,1.09557839,663.09,662.56,1.536]
[1748053596992,1.09557839,663.08,662.56,1.536]
[1748053597190,1.12371235,663.13,662.56,1.536]
[1748053597395,1.59020137,663.12,662.56,1.536]
[1748053597594,1.59019815,663.11,662.56,1.536]
[1748053597796,1.09559202,663.1,662.56,1.536]
[1748053597998,1.09559202,663.09,662.56,1.536]
[1748053598295,1.09559202,663.08,662.56,1.536]
[1748053598495,1.12371235,663.13,662.56,1.536]
[1748053598696,1.59025671,663.12,662.56,1.536]
[1748053598900,1.59025671,663.11,662.56,1.536]
[1748053599102,1.09563038,663.1,662.56,1.536]
[1748053599297,1.09563038,663.09,662.56,1.536]
[1748053599498,1.09563038,663.08,662.56,1.536]
[1748053599699,1.12371235,663.13,662.56,1.536]
[1748053599899,1.59031481,663.12,662.56,1.536]
[1748053600102,1.59031481,663.11,662.56,1.536]
[1748053600303,1.09570932,663.1,662.56,1.536]
[1748053600602,1.09570932,663.09,662.56,1.536]
[1748053600802,1.09570932,663.08,662.56,1.536]
[1748053601000,1.12371235,663.13,662.56,1.536]
[1748053602704,1.12371235,663.28,662.56,2.63106973]
[1748053602999,1.59035106,663.27,662.56,2.63106973]
[1748053603202,1.59035106,663.26,662.56,2.63106973]
[1748053603403,1.59035106,663.25,662.56,2.63106973]
[1748053603702,1.59035106,663.24,662.56,2.63106973]
[1748053603902,1.09570207,663.23,662.56,2.63106973]
[1748053604098,1.59022788,663.22,662.56,2.63106973]
[1748053604303,1.59022788,663.21,662.56,2.63106973]
[1748053604501,1.12371235,663.28,662.56,2.63106973]
[1748053604502,1.59022788,663.2,662.56,2.63106973]
[1748053604698,1.09570207,663.19,662.56,2.63106973]
[1748053604898,1.09570207,663.18,662.56,2.63106973]
[1748053605101,1.09570207,663.17,662.56,2.63106973]
[1748053605404,1.09570207,663.16,662.56,2.63106973]
[1748053605699,1.09522429,663.15,662.56,2.63106973]
[1748053605903,1.12371235,663.28,662.56,2.63106973]
[1748053606103,1.58965861,663.27,662.56,1.536]
[1748053606406,1.58965861,663.26,662.56,1.536]
[1748053606603,1.58965861,663.25,662.56,1.536]
[1748053606804,1.58965861,663.24,662.56,1.536]
[1748053607004,1.58965861,663.23,662.56,1.536]
[1748053607198,1.58965861,663.22,662.56,1.536]
[1748053607401,1.58965861,663.21,662.56,1.536]
[1748053607600,1.58943022,663.2,662.56,1.536]
[1748053607805,1.09510251,663.19,662.56,1.536]
[1748053608103,1.09510251,663.18,662.56,1.536]
[1748053608299,1.09510251,663.17,662.56,1.536]
[1748053608502,1.12371235,663.29,662.56,1.536]
[1748053608503,1.09510251,663.16,662.56,1.536]
[1748053608703,1.12371235,663.29,662.56,1.536]
[1748053608903,1.58938098,663.28,662.56,1.536]
[1748053609104,1.58938098,663.27,662.56,1.536]
[1748053609305,1.58938098,663.26,662.56,1.536]
[1748053609507,1.58925729,663.25,662.56,1.536]
[1748053609702,1.58925729,663.24,662.56,1.536]
[1748053609902,1.58925729,663.23,662.56,1.536]
[1748053610104,1.58925729,663.22,662.56,1.536]
[1748053610307,1.09498353,663.21,662.56,1.536]
[1748053610502,1.09498353,663.2,662.56,1.536]
[1748053610707,1.09498353,663.19,662.56,1.536]
[1748053610908,1.09498353,663.18,662.56,1.536]
[1748053611109,1.09498353,663.17,662.56,1.536]
[1748053611305,1.12371235,663.3,662.56,1.536]
[1748053611509,1.58913752,663.29,662.56,1.536]
[1748053611803,1.12371235,663.24,662.6,1.09506973]
[1748053612008,1.58913752,663.23,662.6,1.09506973]
[1748053612213,1.58913752,663.22,662.6,1.09506973]
[1748053612408,1.58913752,663.21,662.6,1.09506973]
[1748053612602,1.09486589,663.2,662.6,1.09506973]
[1748053612807,1.09486589,663.19,662.6,1.09506973]
[1748053613007,1.09486589,663.18,662.6,1.09506973]
[1748053613308,1.09486589,663.17,662.6,1.09506973]
[1748053613609,1.12371235,663.24,662.6,1.09506973]
[1748053613811,1.58898465,663.23,662.6,1.09506973]
[1748053614011,1.58898465,663.22,662.6,1.09506973]
[1748053614310,1.09475978,663.21,662.6,1.09506973]
[1748053614504,1.12371235,663.17,662.65,1.09506973]
[1748053615713,1.09468189,663.16,662.65,1.09506973]
[1748053616016,1.12371235,663.17,662.65,1.09506973]
[1748053616512,1.09508755,663.16,662.65,1.09506973]
[1748053616713,1.12371235,663.17,662.65,1.09506973]
[1748053616913,1.0951235,663.16,662.65,1.09506973]
[1748053617107,1.12371235,663.17,662.65,1.09506973]
[1748053617410,1.09507816,663.16,662.65,1.09506973]
[1748053617706,1.12371235,663.17,662.65,1.09506973]
[1748053617909,1.09512041,663.16,662.65,1.09506973]
[1748053618108,1.12371235,663.17,662.65,1.09506973]
[1748053618512,2.21886007,663.16,662.65,1.09506973]
[1748053618811,1.12371235,663.16,662.65,1.09506973]
[1748053621315,1.12371235,663.24,662.61,1.09506973]
[1748053621514,1.58984319,663.23,662.61,1.09506973]
[1748053621813,1.58984319,663.22,662.61,1.09506973]
[1748053622009,1.58984319,663.21,662.61,1.09506973]
[1748053622308,1.58984319,663.2,662.61,1.09506973]
[1748053622511,1.09487047,663.19,662.61,1.09506973]
[1748053622712,1.09487047,663.18,662.61,1.09506973]
[1748053622914,1.09487047,663.17,662.61,1.09506973]
[1748053623114,1.09487047,663.16,662.61,1.09506973]
[1748053623409,1.12371235,663.24,662.61,1.09506973]
[1748053623712,1.59008868,663.23,662.61,1.09506973]
[1748053623908,1.59008868,663.22,662.61,1.09506973]
[1748053624112,1.59008868,663.21,662.61,1.09506973]
[1748053624315,1.59008868,663.2,662.61,1.09506973]
[1748053624613,1.09502946,663.19,662.61,1.09506973]
[1748053624813,1.09502946,663.18,662.6,1.09506973]
[1748053625109,1.09506196,663.17,662.6,1.09506973]
[1748053625315,1.09506196,663.16,662.6,1.09506973]
[1748053625611,1.12371235,663.24,662.6,1.09506973]
[1748053625811,1.59017633,663.23,662.6,1.09506973]
[1748053626012,1.59017633,663.22,662.6,1.09506973]
[1748053626216,1.09508996,663.21,662.6,1.09506973]
[1748053626513,1.09508996,663.2,662.6,1.09506973]
[1748053626711,1.12371235,663.24,662.6,1.09506973]
[1748053626916,1.59113291,663.23,662.6,1.09506973]
[1748053627111,1.59113291,663.22,662.6,1.09506973]
[1748053627314,1.59113291,663.21,662.6,1.09506973]
[1748053627512,1.59113291,663.2,662.54,1.09506973]
[1748053627711,1.59113291,663.19,662.54,1.09506973]
[1748053627911,1.59113291,663.18,662.54,1.09506973]
[1748053628114,1.59113291,663.17,662.54,1.09506973]
[1748053628316,1.59113291,663.16,662.54,1.09506973]
[1748053628513,1.59113291,663.15,662.54,1.09506973]
[1748053628716,1.59113291,663.14,662.54,1.09506973]
[1748053628915,1.09602682,663.13,662.54,1.09506973]
[1748053629113,1.09602682,663.12,662.54,1.09506973]
[1748053629318,1.09602682,663.11,662.54,1.09506973]
[1748053629519,1.09602682,663.1,662.54,1.09506973]
[1748053629718,1.09602682,663.09,662.54,1.09506973]
[1748053629921,1.12371235,663.23,662.54,1.09506973]
[1748053630219,1.59141627,663.22,662.55,1.567]
[1748053630417,1.59141627,663.21,662.55,1.567]
[1748053630614,1.59141627,663.2,662.55,1.567]
[1748053630818,1.59141627,663.19,662.55,1.567]
[1748053631021,1.59141627,663.18,662.55,1.567]
[1748053631217,1.12371235,663.15,662.55,1.567]
[1748053631414,1.59141627,663.14,662.55,1.567]
[1748053631618,1.59141627,663.13,662.55,1.567]
[1748053631819,1.5914719,663.12,662.55,1.567]
[1748053632021,1.09621149,663.11,662.55,1.567]
[1748053632216,1.09634204,663.1,662.55,1.567]
[1748053632417,1.09634343,663.09,662.55,1.567]
[1748053632619,1.09634343,663.08,662.55,1.567]
[1748053632918,1.12371235,663.15,662.55,1.567]
[1748053633218,1.59161954,663.14,662.55,1.567]
[1748053633420,1.59162896,663.13,662.55,1.567]
[1748053633619,1.12371235,663.15,662.55,1.567]
[1748053633917,1.59163465,663.14,662.55,1.567]
[1748053634217,1.59164067,663.13,662.55,1.567]
[1748053634416,1.09636149,663.12,662.55,1.567]
[1748053634616,1.59165042,663.11,662.55,1.567]
[1748053634820,1.59169991,663.1,662.55,1.567]
[1748053635020,1.59169991,663.09,662.55,1.567]
[1748053635322,1.09641065,663.08,662.55,1.567]
[1748053635523,1.09643617,663.07,662.55,1.567]
[1748053635726,1.09643617,663.06,662.55,1.567]
[1748053636025,1.09643617,663.05,662.55,1.567]
[1748053636326,1.59181442,663.04,662.55,1.567]
[1748053636627,1.5918142,663.03,662.55,1.567]
[1748053636826,1.09648034,663.02,662.55,1.567]
[1748053637124,1.09648034,663.01,662.55,1.567]
[1748053637324,1.09650901,663.0,662.55,1.567]
[1748053637526,1.09651594,662.99,662.55,1.567]
[1748053637825,1.12371235,663.13,662.55,1.567]
[1748053638025,0.4953683,663.12,662.55,1.567]
[1748053638228,1.12371235,663.01,662.55,1.567]
[1748053638419,0.49537673,663.0,662.55,1.567]
[1748053638719,1.59194135,662.99,662.55,1.567]
[1748053639026,1.09656554,662.98,662.55,1.567]
[1748053639221,1.12371235,663.01,662.55,1.567]
[1748053639423,1.59196356,663.0,662.55,1.567]
[1748053639623,1.09638782,662.99,662.55,1.567]
[1748053639925,1.59170128,662.98,662.55,1.567]
[1748053640127,1.59175124,662.97,662.55,1.567]
[1748053640427,1.0964446,662.96,662.55,1.567]
[1748053640626,2.25569605,663.27,662.55,1.567]
[1748053640627,1.0964446,662.95,662.55,1.567]
[1748053640827,1.09643235,662.94,662.55,1.567]
[1748053641021,1.12371235,662.98,662.55,1.567]
[1748053646731,1.12371235,663.0,662.55,1.567]
[1748053648730,1.59172617,662.99,662.55,1.567]
[1748053648930,1.5911547,662.98,662.55,1.567]
[1748053649232,1.5911547,662.97,662.55,1.567]
[1748053649434,1.5911547,662.96,662.55,1.567]
[1748053649633,1.5911547,662.95,662.55,1.567]
[1748053649829,1.5911547,662.94,662.55,1.567]
[1748053650133,1.5911547,662.93,662.55,1.567]
[1748053650432,1.09599279,662.92,662.55,1.567]
[1748053650626,1.09599279,662.91,662.55,1.567]
[1748053650827,1.59073857,662.9,662.55,1.567]
[1748053651031,1.09599279,662.89,662.55,1.567]
[1748053651333,1.09599279,662.88,662.55,1.567]
[1748053651529,1.12371235,663.02,662.55,1.567]
[1748053651733,1.58913326,663.01,662.55,1.567]
[1748053651931,1.58913326,663.0,662.55,1.567]
[1748053652134,1.58913326,662.99,662.55,1.567]
[1748053652330,1.58913326,662.98,662.55,1.567]
[1748053652527,1.58913326,662.97,662.55,1.567]
[1748053652730,1.58913326,662.96,662.55,1.567]
[1748053652932,1.58913326,662.95,662.55,1.567]
[1748053653234,1.58913326,662.94,662.55,1.567]
[1748053653436,1.58913326,662.93,662.55,1.567]
[1748053653734,1.58866904,662.92,662.55,1.567]
[1748053653934,1.58866904,662.91,662.55,1.567]
[1748053654135,1.58866904,662.9,662.55,1.567]
[1748053654335,1.58866904,662.89,662.55,1.567]